bitfinex/quotes_SOLUSD_20250108
["timestamp","ask_amount","ask_price","bid_price","bid_amount"]
[1736338141386,12.47578921,196.36,196.3,2.42]
[1736338141758,12.47578921,196.36,196.28,137.1]
[1736338141970,1.5024,196.35,196.28,137.1]
[1736338143271,20.0,196.33,196.24,2.42]
[1736338143566,0.76649113,196.32,196.2,139.52]
[1736338143791,0.76649113,196.32,196.21,0.76418234]
[1736338144375,20.0,196.33,196.21,137.86418234]
[1736338144572,20.76649113,196.33,196.21,137.1]
[1736338144778,20.76649113,196.33,196.22,0.76413855]
[1736338144982,22.82302784,196.33,196.22,0.76413855]
[1736338145376,20.0,196.33,196.22,10.77749717]
[1736338145583,20.0,196.33,196.22,0.76413855]
[1736338145776,20.0,196.33,196.23,10.01335862]
[1736338145976,20.0,196.33,196.22,0.76413855]
[1736338145977,20.0,196.33,196.24,0.76408547]
[1736338148068,20.0,196.33,196.24,10.77744409]
[1736338148295,1.5024,196.35,196.24,10.77744409]
[1736338148482,1.5024,196.35,196.24,147.87744409]
[1736338148687,1.5024,196.35,196.24,147.11335862]
[1736338149268,1.5024,196.35,196.24,137.1]
[1736338149705,20.0,196.33,196.25,137.86403873]
[1736338149884,20.0,196.33,196.25,137.1]
[1736338150610,20.0,196.33,196.26,0.76404731]
[1736338150777,20.0,196.33,196.27,2.42]
[1736338152329,21.5024,196.35,196.27,2.42]
[1736338152666,21.5024,196.35,196.28,0.76394874]
[1736338152875,21.5024,196.35,196.28,10.77730736]
[1736338152876,20.0,196.35,196.28,10.77730736]
[1736338153091,17.5367988,196.38,196.28,147.87730736]
[1736338153410,17.5367988,196.38,196.29,10.01335862]
[1736338153573,17.5367988,196.38,196.31,10.01335862]
[1736338153907,17.5367988,196.38,196.32,137.86370123]
[1736338154088,17.5367988,196.38,196.33,0.76371357]
[1736338154270,17.5367988,196.38,196.34,2.42]
[1736338154671,17.5367988,196.38,196.35,0.76369946]
[1736338155072,17.5367988,196.38,196.34,139.52]
[1736338155887,17.5367988,196.38,196.35,0.76373495]
[1736338156094,17.5367988,196.38,196.34,3.18373211]
[1736338157104,17.5367988,196.38,196.34,2.42]
[1736338158082,20.0,196.35,196.34,2.42]
[1736338158282,20.0,196.35,196.31,137.1]
[1736338158687,20.0,196.35,196.28,139.52]
[1736338159295,20.0,196.35,196.28,2.42]
[1736338159600,20.76649113,196.35,196.23,7.96867146]
[1736338159796,20.76649113,196.35,196.23,0.76412076]
[1736338160135,20.0,196.31,196.23,137.86412076]
[1736338160413,20.0,196.31,196.23,137.1]
[1736338160708,20.0,196.27,196.19,139.52]
[1736338160908,20.0,196.27,196.19,137.1]
[1736338161211,20.0,196.27,196.18,145.06867146]
[1736338161390,24.54337513,196.3,196.18,137.1]
[1736338161391,20.0,196.26,196.18,137.1]
[1736338161597,20.0,196.26,196.15,154.01277146]
[1736338161816,20.0,196.26,196.16,0.76440797]
[1736338162531,20.0,196.26,196.18,10.01335862]
[1736338162689,1.5945,196.31,196.2,10.01335862]
[1736338162997,20.0,196.3,196.21,0.76418849]
[1736338163509,20.0,196.3,196.2,0.76424101]
[1736338163732,20.76649113,196.3,196.19,137.1]
[1736338163907,44.54337513,196.3,196.19,137.1]
[1736338164501,20.76649113,196.3,196.2,0.76433671]
[1736338165533,20.76649113,196.3,196.19,137.1]
[1736338165821,23.776884,196.29,196.15,146.0441]
[1736338166013,20.0,196.26,196.16,0.764398]
[1736338166618,0.76649113,196.25,196.15,137.1]
[1736338166912,0.76649113,196.25,196.14,182.98]
[1736338167316,1.6222,196.24,196.14,182.98]
[1736338168027,1.6222,196.24,196.15,0.76445583]
[1736338170806,21.6222,196.24,196.15,137.86445583]
[1736338171001,21.6222,196.24,196.15,137.1]
[1736338171408,1.6222,196.24,196.15,137.1]
[1736338172441,1.6222,196.24,196.16,0.76443663]
[1736338173536,1.6222,196.24,196.16,16.36757534]
[1736338173840,1.6222,196.24,196.17,15.60313871]
[1736338174010,1.6222,196.24,196.18,0.76428503]
[1736338174207,1.6222,196.24,196.19,139.52]
[1736338175336,1.6181,196.29,196.2,137.86429288]
[1736338175544,1.6181,196.29,196.2,137.1]
[1736338175742,1.6181,196.29,196.21,0.76419006]
[1736338178732,1.6181,196.29,196.21,153.46732877]
[1736338178922,1.6181,196.29,196.21,152.70313871]
[1736338179122,1.6181,196.29,196.22,0.76405302]
[1736338179324,6.4334,196.33,196.22,16.36719173]
[1736338179936,1.6471,196.34,196.23,15.60313871]
[1736338180258,1.6471,196.34,196.25,15.60313871]
[1736338180546,1.6471,196.34,196.26,140.2839717]
[1736338180716,1.6471,196.34,196.26,139.52]
[1736338181912,1.6471,196.34,196.27,0.76398218]
[1736338185843,1.6471,196.34,196.27,137.86398218]
[1736338186154,20.0,196.35,196.28,15.60313871]
[1736338186326,20.0,196.35,196.29,0.76382718]
[1736338186527,17.5367988,196.38,196.29,234.26696589]
[1736338186828,17.5367988,196.38,196.29,233.50313871]
[1736338187040,17.5367988,196.38,196.3,0.7637938]
[1736338189147,20.0,196.35,196.3,0.7637938]
[1736338190329,20.0,196.35,196.3,2.42]
[1736338192173,1.6174,196.34,196.25,2.42]
[1736338192334,0.76649113,196.33,196.25,2.42]
[1736338192950,0.76649113,196.33,196.22,137.1]
[1736338195163,2.38389113,196.34,196.23,0.76416087]
[1736338195332,2.38389113,196.34,196.21,139.52]
[1736338195638,20.0,196.3,196.21,139.52]
[1736338196027,20.0,196.3,196.22,0.76419253]
[1736338200858,20.0,196.3,196.22,137.86419253]
[1736338201053,20.0,196.3,196.22,137.1]
[1736338201262,20.0,196.3,196.23,0.76416875]
[1736338201637,20.0,196.32,196.23,137.86416875]
[1736338201960,1.6174,196.34,196.23,152.70255469]
[1736338202757,26.96337513,196.33,196.17,143.4886]
[1736338202947,20.0,196.3,196.18,144.34780316]
[1736338203146,1.603,196.28,196.18,137.1]
[1736338204255,1.603,196.28,196.19,0.76424267]
[1736338204563,1.603,196.28,196.19,16.36679736]
[1736338204891,1.603,196.28,196.21,152.70255469]
[1736338205067,1.5848,196.33,196.22,137.86410797]
[1736338205245,1.5848,196.33,196.23,15.60255469]
[1736338205568,20.0,196.32,196.24,0.76409466]
[1736338206139,1.5848,196.33,196.24,0.76409466]
[1736338206540,1.5848,196.33,196.23,0.76410304]
[1736338207348,20.0,196.32,196.23,0.76410304]
[1736338208150,20.0,196.32,196.22,137.1]
[1736338208355,0.76649113,196.31,196.22,137.1]
[1736338209559,20.76649113,196.32,196.22,137.1]
[1736338209760,20.76649113,196.32,196.21,2.42]
[1736338209761,20.76649113,196.32,196.21,139.52]
[1736338211254,20.76649113,196.32,196.22,0.76422033]
[1736338212247,20.0,196.32,196.22,16.36677502]
[1736338212643,1.5848,196.33,196.23,15.60255469]
[1736338212871,1.5848,196.33,196.24,16.36655854]
[1736338213169,20.0,196.32,196.24,16.36655854]
[1736338213369,20.0,196.32,196.25,15.60255469]
[1736338213552,6.4683,196.4,196.25,15.60255469]
[1736338213553,19.0379988,196.38,196.27,15.60255469]
[1736338213753,19.0379988,196.38,196.28,140.2838657]
[1736338213960,17.5367988,196.38,196.3,15.60255469]
[1736338214176,17.5367988,196.38,196.31,0.76372847]
[1736338215088,17.5367988,196.38,196.32,0.76368569]
[1736338216158,17.5367988,196.38,196.33,152.70255469]
[1736338216360,17.5367988,196.38,196.34,0.76364855]
[1736338216572,17.5367988,196.38,196.35,2.42]
[1736338216782,17.5367988,196.38,196.36,0.76361274]
[1736338218167,17.5367988,196.38,196.35,2.42]
[1736338218364,17.5367988,196.38,196.36,0.76366039]
[1736338219574,17.5367988,196.38,196.37,2.42]
[1736338220167,15.4967988,196.38,196.37,2.42]
[1736338224567,15.4967988,196.38,196.37,139.52]
[1736338228984,15.4967988,196.38,196.37,137.1]
[1736338229175,15.4967988,196.38,196.37,139.52]
[1736338233772,15.4967988,196.38,196.37,2.42]
[1736338239694,15.4967988,196.38,196.37,139.52]
[1736338243782,15.4967988,196.38,196.34,224.1058]
[1736338243991,15.4967988,196.38,196.35,3.16365726]
[1736338244394,15.4967988,196.38,196.35,140.26365726]
[1736338244685,15.4967988,196.38,196.35,139.5]
[1736338244918,15.4967988,196.38,196.36,0.76366396]
[1736338247607,15.4967988,196.38,196.37,2.4]
[1736338248703,15.4967988,196.38,196.37,139.5]
[1736338259588,15.4967988,196.38,196.37,149.46896352]
[1736338260493,15.4967988,196.38,196.37,137.1]
[1736338260713,15.4967988,196.38,196.37,2.4]
[1736338260912,15.4967988,196.38,196.35,0.76364481]
[1736338261100,15.4967988,196.38,196.37,2.4]
[1736338261414,15.4967988,196.38,196.35,0.76364481]
[1736338261620,15.4967988,196.38,196.36,2.4]
[1736338261822,15.4967988,196.38,196.34,2.4]
[1736338263002,15.4967988,196.38,196.32,2.4]
[1736338263406,15.4967988,196.38,196.31,2.4]
[1736338264132,15.4967988,196.38,196.31,3.16382054]
[1736338266200,15.4967988,196.38,196.32,147.06896352]
[1736338266400,15.4967988,196.38,196.33,0.76372542]
[1736338267013,15.4967988,196.38,196.34,9.96896352]
[1736338267213,15.4967988,196.38,196.35,137.86367912]
[1736338267406,15.4967988,196.38,196.35,137.1]
[1736338269126,1.5985,196.37,196.33,2.4]
[1736338269509,1.5985,196.37,196.3,7.95118678]
[1736338269939,1.5985,196.37,196.29,182.98]
[1736338270231,1.5985,196.37,196.29,190.93118678]
[1736338270422,20.0,196.35,196.29,190.93118678]
[1736338270618,20.0,196.35,196.29,53.83118678]
[1736338271027,20.0,196.35,196.29,45.88]
[1736338271228,23.776884,196.34,196.29,45.88]
[1736338271428,24.54337513,196.34,196.29,45.88]
[1736338271817,20.0,196.35,196.29,45.88]
[1736338272324,20.0,196.35,196.29,48.28]
[1736338273917,20.0,196.35,196.29,2.4]
[1736338274534,1.5985,196.37,196.29,2.4]
[1736338275723,1.5985,196.37,196.29,139.5]
[1736338277210,1.5985,196.37,196.3,0.763936]
[1736338277619,1.5985,196.37,196.29,217.9]
[1736338277838,1.5985,196.37,196.3,2.4]
[1736338278813,1.5985,196.37,196.31,0.76388054]
[1736338279027,1.5985,196.37,196.3,2.4]
[1736338281157,20.0,196.35,196.27,137.1]
[1736338281363,20.0,196.35,196.27,139.5]
[1736338281954,24.54337513,196.34,196.27,2.4]
[1736338282153,20.76649113,196.35,196.27,2.4]
[1736338282355,20.0,196.35,196.27,3.16407647]
[1736338282850,1.5985,196.37,196.27,3.16407647]
[1736338283231,1.5985,196.37,196.28,147.06896352]
[1736338283431,1.5985,196.37,196.29,137.86384417]
[1736338283620,1.5985,196.37,196.29,137.1]
[1736338284931,1.5985,196.37,196.3,0.76384378]
[1736338286925,1.5985,196.37,196.27,139.5]
[1736338287823,0.76649113,196.36,196.27,139.5]
[1736338288244,23.776884,196.34,196.23,137.1]
[1736338288746,20.0,196.35,196.25,9.96896352]
[1736338288949,20.0,196.35,196.26,0.76397232]
[1736338289158,20.0,196.33,196.26,0.76397232]
[1736338289988,23.776884,196.36,196.26,0.76397232]
[1736338290262,1.5985,196.37,196.27,9.96896352]
[1736338290424,1.5985,196.37,196.28,0.76389202]
[1736338290627,1.5985,196.37,196.29,139.5]
[1736338290833,1.5985,196.37,196.3,0.76386021]
[1736338291046,1.5985,196.37,196.29,139.5]
[1736338291266,1.5985,196.37,196.3,0.76392129]
[1736338292579,1.5985,196.37,196.29,139.5]
[1736338292779,20.0,196.35,196.29,139.5]
[1736338292951,20.0,196.35,196.29,137.1]
[1736338294490,1.5985,196.37,196.3,0.76397792]
[1736338294860,1.5985,196.37,196.29,137.1]
[1736338295171,1.5985,196.37,196.3,0.76391774]
[1736338296480,1.5985,196.37,196.3,137.86391774]
[1736338296655,1.5985,196.37,196.3,137.1]
[1736338301365,1.5985,196.37,196.31,0.76385353]
[1736338301672,15.4967988,196.38,196.31,137.86385353]
[1736338301981,15.4967988,196.38,196.31,137.1]
[1736338302169,15.4967988,196.38,196.32,0.76379107]
[1736338303478,15.4967988,196.38,196.32,218.66379107]
[1736338303679,15.4967988,196.38,196.32,217.9]
[1736338303873,15.4967988,196.38,196.33,218.66373353]
[1736338304072,15.4967988,196.38,196.33,217.9]
[1736338305984,15.4967988,196.38,196.34,0.76374401]
[1736338306286,15.4967988,196.38,196.35,2.4]
[1736338306489,15.4967988,196.38,196.35,139.5]
[1736338309386,15.4967988,196.38,196.36,137.1]
[1736338314074,15.4967988,196.38,196.37,137.86361754]
[1736338314287,15.4967988,196.38,196.37,137.1]
[1736338323589,15.4967988,196.38,196.35,217.9]
[1736338324203,15.4967988,196.38,196.32,137.1]
[1736338324398,15.4967988,196.38,196.3,217.9]
[1736338324589,15.4967988,196.38,196.3,220.3]
[1736338325788,15.4967988,196.38,196.31,0.76388848]
[1736338329702,15.4967988,196.38,196.31,137.86388848]
[1736338329911,15.4967988,196.38,196.31,137.1]
[1736338330607,15.4967988,196.38,196.32,0.76383198]
[1736338331608,15.4967988,196.38,196.31,137.1]
[1736338332186,15.4967988,196.38,196.32,10.73286526]
[1736338333400,15.4967988,196.38,196.34,9.96896352]
[1736338333606,15.4967988,196.38,196.35,0.763661]
[1736338337490,15.4967988,196.38,196.36,227.86896352]
[1736338337704,15.4967988,196.38,196.37,3.1635784]
[1736338338403,15.4967988,196.38,196.37,2.4]
[1736338341519,15.4967988,196.38,196.37,139.5]
[1736338342312,15.4967988,196.38,196.37,137.1]
[1736338342518,15.4967988,196.38,196.37,139.5]
[1736338343318,15.4967988,196.38,196.37,2.4]
[1736338343498,15.4967988,196.38,196.36,2.4]
[1736338343698,15.4967988,196.38,196.33,137.1]
[1736338343895,15.4967988,196.38,196.34,2.4]
[1736338344095,15.4967988,196.38,196.33,2.4]
[1736338345229,15.4967988,196.38,196.3,137.1]
[1736338345400,25.386784,196.37,196.28,137.1]
[1736338345713,0.76649113,196.36,196.27,147.45118678]
[1736338345915,25.386784,196.37,196.27,149.46896352]
[1736338345916,26.15327513,196.37,196.27,149.46896352]
[1736338346823,26.15327513,196.37,196.27,137.1]
[1736338347817,6.0867,196.36,196.27,137.1]
[1736338347993,0.76649113,196.35,196.27,137.1]
[1736338350193,6.85319113,196.36,196.27,137.1]
[1736338354116,6.85319113,196.36,196.27,147.06896352]
[1736338354326,6.85319113,196.36,196.27,137.1]
[1736338355250,23.776884,196.35,196.27,137.1]
[1736338355550,23.776884,196.33,196.25,139.5]
[1736338357434,23.776884,196.27,196.19,7.95118678]
[1736338357746,1.5555,196.24,196.19,7.95118678]
[1736338357931,0.76649113,196.23,196.19,7.95118678]
[1736338358129,20.0,196.22,196.16,45.88]
[1736338358328,0.76649113,196.21,196.16,45.88]
[1736338358751,20.0,196.22,196.16,45.88]
[1736338358948,20.76649113,196.22,196.16,45.88]
[1736338359457,1.5555,196.24,196.17,9.96896352]
[1736338360749,1.5227,196.28,196.2,9.96896352]
[1736338361245,1.5227,196.28,196.19,147.06896352]
[1736338361436,1.5227,196.28,196.19,152.70126939]
[1736338361831,1.5227,196.28,196.21,15.60126939]
[1736338362031,1.5227,196.28,196.22,2.4]
[1736338362231,1.5227,196.28,196.22,155.10126939]
[1736338362431,6.0546,196.33,196.24,152.70126939]
[1736338362640,3.6016989,196.34,196.25,16.36539606]
[1736338362842,1.5309,196.34,196.26,15.60126939]
[1736338363443,1.5309,196.34,196.26,153.46534671]
[1736338363641,0.76649113,196.33,196.26,137.1]
[1736338364840,23.776884,196.32,196.26,137.1]
[1736338365154,0.76649113,196.31,196.26,137.1]
[1736338368551,20.0,196.29,196.19,137.1]
[1736338368856,20.0,196.29,196.21,2.4]
[1736338369660,20.0,196.29,196.21,18.00126939]
[1736338369955,20.0,196.29,196.21,2.4]
[1736338372156,1.5309,196.34,196.22,153.46554697]
[1736338372356,23.776884,196.32,196.23,15.60126939]
[1736338373436,23.776884,196.33,196.23,15.60126939]
[1736338373752,24.54337513,196.33,196.23,15.60126939]
[1736338374269,1.5309,196.34,196.24,137.1]
[1736338374565,1.5309,196.34,196.25,16.36536756]
[1736338374736,1.5309,196.34,196.24,152.70126939]
[1736338375155,1.5309,196.34,196.28,15.60126939]
[1736338375344,1.5309,196.34,196.29,2.4]
[1736338378237,20.0,196.3,196.18,151.17498678]
[1736338378460,0.76649113,196.29,196.18,145.05118678]
[1736338378659,0.76649113,196.29,196.18,137.1]
[1736338378660,20.0,196.26,196.18,137.1]
[1736338378879,20.76649113,196.26,196.18,137.1]
[1736338380850,23.776884,196.25,196.17,137.1]
[1736338381057,0.76649113,196.24,196.17,137.1]
[1736338381462,20.0,196.26,196.19,15.60126939]
[1736338381668,1.5615,196.27,196.2,15.60126939]
[1736338381884,1.5615,196.27,196.21,15.60126939]
[1736338382167,1.5615,196.27,196.21,152.70126939]
[1736338383168,1.6344,196.32,196.25,15.60126939]
[1736338383373,1.6344,196.32,196.24,15.60126939]
[1736338384278,1.6344,196.32,196.23,16.36538449]
[1736338384464,1.6344,196.32,196.22,152.70126939]
[1736338384665,20.0,196.31,196.22,152.70126939]
[1736338385667,20.76649113,196.31,196.22,152.70126939]
[1736338386049,20.0,196.31,196.22,152.70126939]
[1736338386367,20.0,196.31,196.22,233.50126939]
[1736338386572,20.0,196.31,196.24,15.60126939]
[1736338386774,1.6344,196.32,196.24,15.60126939]
[1736338387144,1.6344,196.32,196.24,152.70126939]
[1736338387354,1.6344,196.32,196.26,152.70126939]
[1736338387675,1.6124,196.37,196.28,15.60126939]
[1736338387856,23.776884,196.35,196.26,139.52]
[1736338388067,20.0,196.3,196.26,137.1]
[1736338388265,20.0,196.3,196.23,2.42]
[1736338388775,43.776884,196.33,196.23,139.52]
[1736338388991,1.5176,196.3,196.23,139.52]
[1736338389365,0.76649113,196.29,196.23,139.52]
[1736338389566,7.22309113,196.29,196.23,137.1]
[1736338389762,20.0,196.26,196.19,2.42]
[1736338389990,20.0,196.26,196.19,139.52]
[1736338390190,0.76649113,196.25,196.19,139.52]
[1736338390689,20.0,196.26,196.19,139.52]
[1736338392788,0.76649113,196.28,196.19,155.12126939]
[1736338392991,1.5176,196.3,196.22,15.60126939]
[1736338393183,1.5176,196.3,196.23,15.60126939]
[1736338393377,1.5176,196.3,196.25,152.70126939]
[1736338393881,1.6407,196.34,196.26,18.78536406]
[1736338394471,1.6407,196.34,196.26,18.02126939]
[1736338395203,1.6407,196.34,196.27,15.60126939]
[1736338398387,1.6407,196.34,196.27,233.50126939]
[1736338398794,1.6407,196.34,196.28,0.7639631]
[1736338399684,1.6407,196.34,196.27,233.50126939]
[1736338401389,1.6407,196.34,196.28,15.60126939]
[1736338402285,1.6407,196.34,196.27,233.50126939]
[1736338403083,1.6407,196.34,196.27,217.9]
[1736338403803,1.6407,196.34,196.27,233.50126939]
[1736338404796,1.6407,196.34,196.29,233.50126939]
[1736338405301,1.6407,196.34,196.29,217.9]
[1736338405804,1.6407,196.34,196.29,233.50126939]
[1736338409400,21.7425988,196.38,196.29,233.50126939]
[1736338409702,15.4967988,196.38,196.32,15.60126939]
[1736338409882,15.4967988,196.38,196.31,15.60126939]
[1736338410083,15.4967988,196.38,196.31,16.36509482]
[1736338411493,15.4967988,196.38,196.33,15.60126939]
[1736338411708,15.4967988,196.38,196.34,16.36499405]
[1736338415015,12.9507988,196.38,196.33,235.90126939]
[1736338415408,12.9507988,196.38,196.33,217.9]
[1736338416305,12.9507988,196.38,196.33,80.8]
[1736338416512,13.71728993,196.38,196.33,80.8]
[1736338416684,13.71728993,196.38,196.31,139.5]
[1736338416888,1.6375,196.37,196.31,139.5]
[1736338419136,1.6375,196.37,196.32,16.36513045]
[1736338419335,12.9507988,196.38,196.32,153.46513045]
[1736338419494,12.9507988,196.38,196.32,152.70126939]
[1736338420007,12.9507988,196.38,196.32,137.1]
[1736338421214,13.71728993,196.38,196.32,137.1]
[1736338421398,13.71728993,196.38,196.31,83.2]
[1736338422417,12.9507988,196.38,196.31,83.2]
[1736338422794,0.76649113,196.37,196.31,83.2]
[1736338427922,25.313284,196.36,196.28,137.1]
[1736338428097,23.776884,196.34,196.25,217.9]
[1736338428298,0.76649113,196.33,196.25,217.9]
[1736338430625,23.776884,196.32,196.25,80.8]
[1736338430820,0.76649113,196.31,196.24,137.1]
[1736338431007,20.76649113,196.34,196.24,137.1]
[1736338431210,20.0,196.3,196.24,137.1]
[1736338432021,20.76649113,196.32,196.24,137.1]
[1736338432402,7.41149113,196.35,196.26,15.60126939]
[1736338432603,1.5364,196.36,196.28,152.70126939]
[1736338432819,1.5364,196.36,196.29,2.4]
[1736338433018,20.0,196.35,196.29,2.4]
[1736338435118,20.76649113,196.35,196.29,2.4]
[1736338437527,1.5364,196.36,196.29,18.00126939]
[1736338437743,1.5364,196.36,196.3,15.60126939]
[1736338439620,1.5364,196.36,196.29,18.00126939]
[1736338440335,1.5364,196.36,196.29,2.4]
[1736338440740,43.776884,196.35,196.28,137.1]
[1736338440946,44.54337513,196.35,196.25,2.4]
[1736338441241,44.54337513,196.35,196.24,80.8]
[1736338441934,20.0,196.31,196.24,80.8]
[1736338442143,0.76649113,196.3,196.24,80.8]
[1736338444118,20.0,196.31,196.24,80.8]
[1736338444554,20.0,196.31,196.24,96.40126939]
[1736338444852,7.9483,196.34,196.25,233.50126939]
[1736338445317,7.9483,196.34,196.26,15.60126939]
[1736338445626,1.5639,196.34,196.26,15.60126939]
[1736338445825,2.33039113,196.34,196.26,15.60126939]
[1736338446226,1.5639,196.34,196.25,233.50126939]
[1736338446636,1.5639,196.34,196.26,15.60126939]
[1736338448018,1.5639,196.34,196.27,15.60126939]
[1736338448221,1.5639,196.34,196.28,139.5]
[1736338448455,1.5639,196.34,196.29,15.60126939]
[1736338448625,1.5639,196.34,196.3,15.60126939]
[1736338448833,1.5639,196.34,196.28,139.5]
[1736338448834,1.5639,196.34,196.28,155.10126939]
[1736338450376,1.5639,196.34,196.28,137.1]
[1736338453436,1.5639,196.34,196.29,2.4]
[1736338455460,1.5639,196.34,196.29,220.3]
[1736338461589,2.33039113,196.34,196.29,217.9]
[1736338467274,2.33039113,196.34,196.26,220.3]
[1736338468464,1.5639,196.34,196.26,235.90126939]
[1736338468679,12.9507988,196.38,196.3,15.60126939]
[1736338468980,13.71728993,196.38,196.3,15.60126939]
[1736338469485,13.71728993,196.38,196.29,233.50126939]
[1736338470210,13.71728993,196.38,196.29,217.9]
[1736338470368,20.0,196.35,196.29,217.9]
[1736338470558,0.76649113,196.34,196.27,137.1]
[1736338472259,20.0,196.35,196.27,137.1]
[1736338472453,0.76649113,196.34,196.27,137.1]
[1736338476489,13.71728993,196.38,196.29,15.60126939]
[1736338476664,12.9507988,196.38,196.3,16.36519194]
[1736338476864,12.9507988,196.38,196.3,15.60126939]
[1736338477169,12.9507988,196.38,196.29,15.60126939]
[1736338477374,12.9507988,196.38,196.29,233.50126939]
[1736338479490,12.9507988,196.38,196.3,16.36519438]
[1736338480267,12.9507988,196.38,196.3,15.60126939]
[1736338482189,12.9507988,196.38,196.3,233.50126939]
[1736338483273,12.9507988,196.38,196.3,227.87388579]
[1736338484288,12.9507988,196.38,196.34,9.97388579]
[1736338484596,12.9507988,196.38,196.34,227.87388579]
[1736338485879,12.9507988,196.38,196.34,217.9]
[1736338488779,12.9507988,196.38,196.34,227.87388579]
[1736338490500,12.9507988,196.38,196.35,23.776884]
[1736338490679,12.9507988,196.38,196.35,34.51445519]
[1736338491074,12.9507988,196.38,196.35,23.776884]
[1736338491601,12.9507988,196.38,196.34,227.87388579]
[1736338493004,12.9507988,196.38,196.35,9.97388579]
[1736338494218,12.9507988,196.38,196.35,227.87388579]
[1736338496585,12.9507988,196.38,196.35,217.9]
[1736338500305,13.71728993,196.38,196.31,217.9]
[1736338500487,13.71728993,196.38,196.31,220.3]
[1736338501510,12.9507988,196.38,196.31,220.3]
[1736338502807,1.6489,196.36,196.31,220.3]
[1736338504115,1.6489,196.36,196.31,217.9]
[1736338504914,20.76649113,196.35,196.27,217.9]
[1736338506297,20.76649113,196.35,196.27,227.87388579]
[1736338506489,1.6489,196.36,196.29,33.75076979]
[1736338506693,1.6489,196.36,196.3,9.97388579]
[1736338506908,1.6489,196.36,196.29,33.75076979]
[1736338507304,1.6489,196.36,196.29,251.65076979]
[1736338507507,13.71728993,196.38,196.3,9.97388579]
[1736338507726,12.9507988,196.38,196.3,9.97388579]
[1736338508694,12.9507988,196.38,196.33,9.97388579]
[1736338508910,12.9507988,196.38,196.34,9.97388579]
[1736338509119,12.9507988,196.38,196.35,227.87388579]
[1736338509301,12.9507988,196.38,196.35,217.9]
[1736338509489,12.9507988,196.38,196.35,227.87388579]
[1736338509696,12.9507988,196.38,196.36,9.97388579]
[1736338510097,12.9507988,196.38,196.35,227.87388579]
[1736338510293,12.9507988,196.38,196.35,217.9]
[1736338510495,12.9507988,196.38,196.32,139.5]
[1736338511808,0.76649113,196.37,196.3,137.1]
[1736338514215,12.9507988,196.38,196.3,137.1]
[1736338514600,0.76649113,196.37,196.3,137.1]
[1736338515235,0.76649113,196.37,196.3,217.9]
[1736338516431,20.0,196.35,196.3,217.9]
[1736338516637,0.76649113,196.34,196.28,2.4]
[1736338516810,2.32229113,196.34,196.25,137.1]
[1736338517011,2.32229113,196.34,196.26,2.4]
[1736338517927,2.32229113,196.34,196.25,139.5]
[1736338518121,2.32229113,196.34,196.25,137.1]
[1736338518331,2.32229113,196.34,196.25,139.5]
[1736338518611,2.32229113,196.34,196.25,137.1]
[1736338518813,22.32229113,196.34,196.25,139.5]
[1736338525937,20.0,196.31,196.25,139.5]
[1736338526144,0.76649113,196.3,196.2,217.9]
[1736338526330,0.76649113,196.3,196.21,2.4]
[1736338527140,0.76649113,196.3,196.18,2.4]
[1736338527141,20.0,196.28,196.18,2.4]
[1736338527442,20.76649113,196.27,196.18,139.5]
[1736338527821,20.76649113,196.27,196.18,137.1]
[1736338528024,20.0,196.26,196.17,185.38]
[1736338528337,0.76649113,196.25,196.17,185.38]
[1736338528541,20.76649113,196.25,196.17,185.38]
[1736338528713,20.0,196.24,196.17,185.38]
[1736338528919,0.76649113,196.23,196.17,185.38]
[1736338529420,2.34969113,196.23,196.17,182.98]
[1736338531035,2.34969113,196.23,196.17,137.1]
[1736338532246,1.5832,196.23,196.17,137.1]
[1736338533246,0.76649113,196.22,196.16,217.9]